bitfinex-derivatives/quotes_ETHF0:USTF0_20241207
["timestamp","ask_amount","ask_price","bid_price","bid_amount"]
[1733564934823,0.55643,3987.7,3987.6,0.20368122]
[1733564935028,0.3811,3987.7,3987.6,0.37902122]
[1733564935824,0.3811,3987.7,3987.6,0.25367893]
[1733564936027,0.55643,3987.7,3987.6,0.25367893]
[1733564936228,0.3811,3987.7,3987.6,0.25367893]
[1733564937034,0.7688,3987.9,3987.6,0.07833893]
[1733564937231,1.34273,3987.9,3987.8,0.17533]
[1733564937426,0.7886,3987.9,3987.8,0.25366893]
[1733564937641,0.39,3987.9,3987.8,0.25366893]
[1733564938733,0.39,3987.9,3987.8,0.17533]
[1733564938929,0.39,3987.9,3987.8,0.25366428]
[1733564941339,0.56533,3987.9,3987.8,0.07833438]
[1733564941545,0.94443,3987.9,3987.6,0.17533]
[1733564941744,0.3831,3987.8,3987.7,0.07833472]
[1733564941941,0.3831,3987.8,3987.7,0.25366472]
[1733564942339,0.55843,3987.8,3987.7,0.07833472]
[1733564942842,0.55843,3987.8,3987.7,0.25366472]
[1733564944446,0.3831,3987.8,3987.7,0.25366472]
[1733564944641,0.3831,3987.8,3987.7,0.25366458]
[1733564944849,0.55843,3987.8,3987.7,0.25366458]
[1733564945251,0.3831,3987.8,3987.7,0.25366458]
[1733564945753,0.55843,3987.8,3987.7,0.25366458]
[1733564946752,0.3831,3987.8,3987.7,0.25366458]
[1733564946946,0.55843,3987.8,3987.7,0.25366458]
[1733564947147,0.3831,3987.8,3987.7,0.25366458]
[1733564947654,0.3831,3987.8,3987.7,0.17533]
[1733564952154,0.55843,3987.8,3987.7,0.17533]
[1733564952449,0.3831,3987.8,3987.7,0.17533]
[1733564953954,0.55843,3987.8,3987.7,0.17533]
[1733564955257,0.55843,3987.8,3987.7,0.2536647]
[1733564955755,0.55843,3987.8,3987.7,0.53566958]
[1733564956550,0.3831,3987.8,3987.7,0.53566958]
[1733564956854,0.55843,3987.8,3987.7,0.53566958]
[1733564957250,0.55843,3987.8,3987.7,0.61498029]
[1733564958255,0.3831,3987.8,3987.7,0.61498029]
[1733564958553,0.55843,3987.8,3987.7,0.61498029]
[1733564958757,0.55843,3987.8,3987.7,0.61498016]
[1733564959952,3.76623,3987.8,3987.7,0.53566945]
[1733564960351,3.76623,3987.8,3987.7,0.36033945]
[1733564960654,4.67156173,3987.8,3987.7,0.36033945]
[1733564961554,4.67156173,3987.8,3987.7,0.20367012]
[1733564962255,5.31856173,3987.8,3987.7,0.20369136]
[1733564962755,0.17535,3987.4,3987.3,0.17535]
[1733564963057,0.17535,3987.4,3987.3,0.25369335]
[1733564963862,3.38315,3987.4,3987.3,0.07834335]
[1733564964253,3.6009,3987.4,3987.0,0.17536]
[1733564964555,0.17536,3987.1,3987.0,0.17536]
[1733564964860,0.17536,3987.1,3987.0,0.25371081]
[1733564966958,0.17536,3987.1,3987.0,0.07835081]
[1733564968058,1.08069173,3987.1,3987.0,0.07835081]
[1733564968273,4.02954272,3987.1,3987.0,0.07835081]
[1733564968954,4.02954272,3987.1,3986.4,0.17539]
[1733564968955,0.17539,3986.5,3986.4,0.17539]
[1733564969156,0.90533173,3986.6,3986.1,3.21697]
[1733564969352,0.55499,3986.4,3986.3,0.17539]
[1733564969757,0.55499,3986.4,3986.3,0.45748746]
[1733564969952,0.55499,3986.4,3986.3,0.53597538]
[1733564970157,0.55499,3986.4,3986.3,15.2725692]
[1733564972165,0.55499,3986.4,3986.3,15.27640236]
[1733564972658,0.55499,3986.4,3986.3,15.27634067]
[1733564972857,0.55499,3986.4,3986.3,15.19791433]
[1733564973857,0.55499,3986.4,3986.3,15.02252433]
[1733564974065,0.55499,3986.4,3986.3,13.07022905]
[1733564974458,0.55499,3986.4,3986.3,5.19557301]
[1733564975256,0.55499,3986.4,3986.3,5.21424226]
[1733564975861,0.55499,3986.4,3986.3,5.37096469]
[1733564976360,0.55499,3986.4,3986.3,5.21424226]
[1733564976862,0.55499,3986.4,3986.3,11.11725346]
[1733564977077,0.55499,3986.4,3986.3,6.2037778]
[1733564977264,0.55499,3986.4,3986.3,5.21205449]
[1733564978267,0.55499,3986.4,3986.3,11.1125447]
[1733564979567,0.3796,3986.4,3986.3,11.11255484]
[1733564980068,0.55499,3986.4,3986.3,11.11255484]
[1733564980263,0.3796,3986.4,3986.3,11.11255484]
[1733564980965,0.3796,3986.4,3986.3,11.19091986]
[1733564982269,0.3796,3986.4,3986.3,5.29042965]
[1733564982469,0.55499,3986.4,3986.3,5.29042965]
[1733564983675,0.3796,3986.4,3986.3,5.29042965]
[1733564983878,0.55499,3986.4,3986.3,5.29042965]
[1733564984174,0.3796,3986.4,3986.3,11.19091986]
[1733564984373,0.3796,3986.4,3986.3,5.29042965]
[1733564984975,0.3796,3986.4,3986.3,5.08667789]
[1733564985176,0.3796,3986.4,3986.3,0.17539]
[1733564985876,0.55499,3986.4,3986.3,0.17539]
[1733564986369,0.3796,3986.4,3986.3,0.17539]
[1733564987375,0.55499,3986.4,3986.3,0.17539]
[1733564988372,0.55499,3986.4,3986.3,0.25375569]
[1733564988674,0.55499,3986.4,3986.3,0.17539]
[1733564988973,1.46032173,3986.4,3986.3,0.25375579]
[1733564990067,1.46032173,3986.4,3986.3,0.17539]
[1733564990264,1.46032173,3986.4,3986.3,0.25375585]
[1733564990463,1.46032173,3986.4,3986.3,0.17539]
[1733564990666,1.46032173,3986.4,3986.3,0.25375589]
[1733564991972,1.46032173,3986.4,3986.3,0.07836589]
[1733564992178,1.28493173,3986.4,3986.1,0.1754]
[1733564992370,0.17541,3986.0,3985.9,0.17541]
[1733564992576,1.08074173,3986.0,3985.9,0.25378207]
[1733564992970,1.08074173,3986.0,3985.9,0.53592409]
[1733564993371,1.08074173,3986.0,3985.9,0.36051409]
[1733564993573,1.08074173,3986.0,3985.9,4.29118384]
[1733564993875,0.25077739,3986.6,3986.5,0.17539]
[1733564994073,0.42615739,3986.6,3986.5,0.20377112]
[1733564994377,0.90533173,3986.7,3986.5,0.20377112]
[1733564994572,1.08071173,3986.7,3986.6,0.20377112]
[1733564994970,1.08071173,3986.7,3986.6,0.37915112]
[1733564995172,1.08071173,3986.7,3986.6,0.20377112]
[1733564995580,1.08071173,3986.7,3986.6,0.37915112]
[1733565000179,0.90533173,3986.7,3986.6,0.17538]
[1733565000370,3.85724818,3986.7,3986.6,0.17538]
[1733565000576,4.03262818,3986.7,3986.6,0.17538]
[1733565000976,3.85724818,3986.7,3986.6,0.17538]
[1733565001176,1.08071173,3986.7,3986.6,0.17538]
[1733565002876,4.28851173,3986.7,3986.6,0.17538]
[1733565003982,8.22440033,3986.7,3986.6,0.17538]
[1733565006490,4.28851173,3986.7,3986.6,0.17538]
[1733565007983,4.28851173,3986.7,3986.6,0.25374526]
[1733565008178,9.21172046,3986.7,3986.6,0.37912968]
[1733565008482,4.28851173,3986.7,3986.6,0.37912968]
[1733565008680,4.11313173,3986.7,3986.6,0.37912968]
[1733565009178,0.90533173,3986.7,3986.6,0.37912968]
[1733565009381,3.2078,3986.7,3986.6,0.37912968]
[1733565009883,3.2078,3986.7,3986.6,5.50295239]
[1733565010086,3.2078,3986.7,3986.6,5.65966119]
[1733565010287,3.2078,3986.7,3986.6,5.50294011]
[1733565012284,3.2078,3986.7,3986.6,6.28794193]
[1733565013075,3.2078,3986.7,3986.6,6.28810625]
[1733565013482,3.2078,3986.7,3986.6,6.08436885]
[1733565013680,3.2078,3986.7,3986.6,6.28811038]
[1733565014274,3.2078,3986.7,3986.6,12.18374445]
[1733565014275,2.9545017,3986.7,3986.6,12.18374445]
[1733565015086,2.9545017,3986.7,3986.6,11.98000292]
[1733565015483,10.35102048,3986.9,3986.6,1.27176199]
[1733565015679,10.35102048,3986.9,3986.8,0.17537]
[1733565018294,10.17565048,3986.9,3986.8,0.17537]
[1733565019087,9.52865048,3986.9,3986.8,0.17537]
[1733565019284,5.90785048,3987.3,3986.8,0.98368614]
[1733565019494,4.93216284,3987.2,3987.1,0.90533173]
[1733565019697,4.93216284,3987.2,3987.1,1.28440174]
[1733565019989,4.93216284,3987.3,3987.2,0.17535]
[1733565020192,4.93216284,3987.4,3987.3,0.17535]
[1733565020386,4.93216284,3987.4,3987.3,0.25370441]
[1733565021292,4.93216284,3987.5,3987.4,0.17535]
[1733565022289,5.34286284,3987.6,3987.5,0.17534]
[1733565023194,5.34286284,3987.6,3987.5,0.25368367]
[1733565023391,0.4107,3987.6,3987.5,0.25368367]
[1733565024485,1.49137173,3987.6,3987.5,0.07834367]
[1733565024889,1.31603173,3987.6,3987.5,0.25368367]
[1733565026297,1.49137173,3987.6,3987.5,0.25368367]
[1733565028995,1.49137173,3987.6,3987.3,0.17535]
[1733565028996,0.17535,3987.4,3987.3,0.17535]
[1733565029198,1.08068173,3987.4,3987.3,0.25369648]
[1733565030201,0.90533173,3987.4,3987.3,0.25369648]
[1733565030391,0.4107,3987.6,3987.3,0.07834648]
[1733565030593,0.58604,3987.6,3987.5,0.17534]
[1733565030788,0.58604,3987.6,3987.5,0.25368517]
[1733565032299,0.58604,3987.6,3987.5,0.17534]
[1733565032999,0.58604,3987.6,3987.5,0.25368507]
[1733565033195,0.4107,3987.6,3987.5,0.17534]
[1733565033388,0.4107,3987.6,3987.5,0.25368576]
[1733565033902,0.58604,3987.6,3987.5,0.17534]
[1733565034200,0.58604,3987.6,3987.5,0.25368579]
[1733565034397,0.4107,3987.6,3987.5,0.25368579]
[1733565034596,0.58604,3987.6,3987.5,0.25368579]
[1733565037205,0.58604,3987.6,3987.5,0.17534]
[1733565037596,0.17535,3987.5,3987.4,0.17534]
[1733565037796,0.17535,3987.5,3987.4,0.25368623]
[1733565038300,0.17535,3987.5,3987.4,0.17534]
[1733565038497,0.17535,3987.3,3987.2,0.17535]
[1733565038699,1.08068173,3987.3,3987.2,0.17535]
[1733565038893,4.83913446,3987.3,3987.2,0.17535]
[1733565039094,5.39448446,3987.3,3987.2,0.17535]
[1733565039296,5.62743446,3987.3,3987.2,0.17535]
[1733565040001,5.80278446,3987.3,3987.2,0.17535]
[1733565040199,1.69363173,3987.3,3987.2,0.17535]
[1733565040395,5.80340663,3987.3,3987.2,0.17535]
[1733565040899,1.86898173,3987.3,3987.2,0.17535]
[1733565041806,1.86898173,3987.3,3986.9,3.38316]
[1733565041807,0.17536,3987.0,3986.9,3.38316]
[1733565042005,4.11020925,3987.0,3986.9,3.38316]
[1733565042701,1.08069173,3987.0,3986.9,0.17536]
[1733565043603,6.01285457,3987.0,3986.9,0.17536]
[1733565045212,6.01285457,3987.0,3986.9,0.253719]
[1733565045510,1.08069173,3987.0,3986.9,0.253719]
[1733565047610,1.08069173,3987.0,3986.9,0.2537188]
[1733565048910,1.08069173,3987.0,3986.9,0.37909115]
[1733565049702,1.08069173,3987.0,3986.9,0.20373115]
[1733565049903,1.08069173,3987.0,3986.9,0.37910115]
[1733565050809,1.08069173,3987.0,3986.9,0.0783588]
[1733565051008,0.90533173,3987.0,3986.9,0.07835927]
[1733565051305,0.90533173,3987.0,3986.5,3.94613068]
[1733565051306,0.1754,3986.3,3986.2,0.1754]
[1733565051513,0.646,3986.5,3986.2,0.30078809]
[1733565051713,0.17539,3986.3,3986.2,0.1754]
[1733565052018,0.17539,3986.3,3986.2,0.30078846]
[1733565052811,0.17539,3986.3,3986.2,0.12538846]
[1733565054108,0.17539,3986.3,3986.2,0.30078846]
[1733565054511,0.17539,3986.3,3986.2,0.30078821]
[1733565055821,0.17539,3986.3,3986.2,0.1754]
[1733565056008,2.07783173,3986.4,3986.1,3.3832]
[1733565056009,0.1754,3986.2,3986.1,3.3832]
[1733565058014,0.1754,3986.2,3986.1,3.50858908]
[1733565058814,0.1754,3986.2,3986.1,3.33318909]
[1733565059011,0.1754,3986.2,3986.1,3.50858909]
[1733565060323,0.1754,3986.2,3986.1,3.3832]
[1733565060616,3.12862988,3986.2,3986.1,3.3832]
[1733565060818,3.12862988,3986.2,3986.1,3.2078]
[1733565063228,0.1754,3986.1,3986.0,0.17541]
[1733565063521,0.17541,3986.0,3985.9,0.17541]
[1733565066326,2.95322988,3986.0,3985.4,3.2078]
[1733565066523,0.17543,3985.6,3985.5,0.25380534]
[1733565067019,1.69823173,3985.8,3985.5,0.07837558]
[1733565067325,1.69823173,3985.8,3985.6,0.07837546]
[1733565067523,1.87365173,3985.8,3985.7,0.17542]
[1733565068327,1.87365173,3985.8,3985.7,0.37919624]
[1733565068829,1.87365173,3985.8,3985.7,0.20377624]
[1733565069630,1.87365173,3985.8,3985.7,0.37919624]
[1733565070221,0.7929,3985.8,3985.7,0.37919624]
[1733565070426,0.7929,3985.8,3985.7,0.53594637]
[1733565070628,0.646,3986.1,3986.0,0.17541]
[1733565070819,0.646,3986.1,3986.0,0.37918093]
[1733565071021,0.8214,3986.1,3986.0,0.37918093]
[1733565071818,0.8214,3986.1,3986.0,0.07837343]
[1733565072328,0.8214,3986.1,3985.7,0.7882]
[1733565072329,0.646,3986.1,3985.7,0.7882]
[1733565072529,0.17541,3985.9,3985.8,0.37918637]
[1733565072824,0.17541,3985.9,3985.8,0.20377637]
[1733565074123,0.646,3986.1,3985.8,0.20377637]
[1733565074124,0.646,3986.1,3986.0,0.17541]
[1733565074422,3.2078,3986.7,3986.6,0.17538]
[1733565074629,3.2078,3986.7,3986.6,0.37915693]
[1733565074929,3.2078,3986.7,3986.6,41.17915693]
[1733565075434,3.2078,3986.7,3986.6,0.17538]
[1733565076121,3.2078,3986.7,3986.6,0.25373919]
[1733565077326,3.85856161,3986.9,3986.6,0.07835919]
[1733565077522,0.646,3987.0,3986.9,0.17537]
[1733565077830,0.646,3987.0,3986.9,0.25372129]
[1733565078532,3.2078,3987.1,3987.0,0.17536]
[1733565079131,6.16102988,3987.1,3987.0,0.17536]
[1733565079328,2.95322988,3987.3,3986.8,0.3789]
[1733565079534,2.95322988,3987.3,3987.2,0.17535]
[1733565079729,3.85856161,3987.4,3986.8,0.81733]
[1733565080037,3.85856161,3987.4,3987.3,0.17535]
[1733565081230,2.95322988,3987.5,3986.8,0.3789]
[1733565081437,3.85856161,3987.5,3987.4,0.17535]
[1733565081938,0.90533173,3987.5,3987.4,0.17535]
[1733565082136,3.85856161,3987.5,3987.4,0.17535]
[1733565082331,0.90533173,3987.5,3987.4,0.17535]
[1733565082532,0.90533173,3987.5,3987.4,0.2536928]
[1733565084431,0.90533173,3987.5,3987.4,0.17535]
[1733565085034,0.90533173,3987.5,3987.4,0.25369362]
[1733565085341,0.90533173,3987.5,3987.4,0.17535]
[1733565085934,0.90533173,3987.5,3986.8,4.3101451]
[1733565086141,0.90533173,3987.1,3987.0,0.17536]
[1733565086436,0.90533173,3987.1,3987.0,0.25370657]
[1733565086632,1.31243173,3987.1,3987.0,0.25370657]
[1733565087036,1.71293173,3987.1,3987.0,0.25370657]
[1733565087536,1.71293173,3987.1,3987.0,0.17536]
[1733565087842,1.71293173,3987.1,3987.0,0.25370978]
[1733565088039,1.71293173,3987.1,3987.0,0.25371012]
[1733565089742,1.88829173,3987.1,3987.0,0.25371012]
[1733565090242,1.71293173,3987.1,3987.0,0.25371012]
[1733565090441,1.71293173,3987.1,3987.0,0.17536]
[1733565090944,4.66267047,3987.1,3987.0,0.17536]
[1733565091141,4.83782195,3987.1,3987.0,0.17536]
[1733565091940,4.66246195,3987.1,3987.0,0.17536]
[1733565092941,2.94953022,3987.2,3986.8,0.90533173]
[1733565093243,2.94953022,3987.3,3987.2,0.17535]
[1733565093439,4.84126804,3987.5,3986.9,0.4031]
[1733565093440,2.94953022,3987.4,3986.9,0.4031]
[1733565093641,2.94953022,3987.4,3987.3,0.17535]
[1733565093834,2.94953022,3987.4,3987.3,40.97535]
[1733565094231,2.94953022,3987.4,3987.3,0.17535]
[1733565094638,3.85486195,3987.5,3987.4,0.17535]
[1733565094838,0.90533173,3987.5,3987.4,0.17535]
[1733565095740,3.85381162,3987.5,3987.4,0.17535]
[1733565095940,3.85382313,3987.5,3987.4,0.17535]
[1733565096136,1.08067173,3987.5,3987.4,0.17535]
[1733565096843,5.01660804,3987.5,3987.4,0.17535]
[1733565097045,1.08067173,3987.5,3987.4,0.17535]
[1733565097247,5.01660804,3987.5,3987.4,0.17535]
[1733565097538,0.90533173,3987.5,3987.4,0.17535]
[1733565100342,0.90533173,3987.5,3987.4,0.25369306]
[1733565101546,0.90533173,3987.5,3987.4,0.25369296]
[1733565104539,0.90533173,3987.5,3987.4,0.37904064]
[1733565104943,0.90533173,3987.5,3987.4,0.25369296]
[1733565105149,1.08067173,3987.5,3987.4,0.25369296]
[1733565105648,0.90533173,3987.5,3987.0,3.2078]
[1733565105952,3.85332779,3987.1,3987.0,3.38316]
[1733565106144,3.8530076,3987.1,3987.0,3.38316]
[1733565106346,2.06443173,3987.1,3987.0,3.38316]
[1733565106547,5.01223389,3987.1,3987.0,3.38316]
[1733565107244,2.06443173,3987.1,3987.0,3.38316]
[1733565107646,5.01236743,3987.1,3987.0,3.38316]
[1733565108149,5.01236743,3987.1,3987.0,0.17536]
[1733565108649,5.18772743,3987.1,3987.0,0.17536]
[1733565108851,5.01236743,3987.1,3987.0,0.17536]
[1733565109353,5.18772743,3987.1,3987.0,0.17536]
[1733565109549,5.01236743,3987.1,3987.0,0.17536]
[1733565110448,2.23979173,3987.1,3987.0,0.17536]
[1733565111353,6.17572804,3987.1,3987.0,0.17536]
[1733565111855,0.17536,3987.0,3986.9,3.38316]
[1733565112659,0.17536,3987.0,3986.9,3.58686553]
[1733565112951,0.17536,3987.0,3986.9,3.58687553]
[1733565113149,0.17536,3987.0,3986.9,0.20370553]
[1733565113446,0.17536,3987.0,3986.9,0.07834828]
[1733565114352,2.06443173,3987.1,3986.3,3.2078]
[1733565114559,1.08072173,3986.4,3986.3,3.38319]
[1733565114851,0.90533173,3986.4,3986.3,3.50856751]
[1733565115052,1.08072173,3986.4,3986.3,3.50856751]
[1733565116041,1.08072173,3986.4,3986.3,3.33317751]
[1733565116245,0.90533173,3986.4,3986.3,3.38319]
[1733565117650,1.08072173,3986.4,3986.3,3.38319]
[1733565118250,0.90533173,3986.4,3986.3,3.38319]
[1733565122553,1.08072173,3986.4,3986.3,3.38319]
[1733565122755,0.90533173,3986.4,3986.3,3.38319]
[1733565125465,0.90533173,3986.4,3986.3,3.2078]
[1733565125663,1.08072173,3986.4,3986.3,3.38319]
[1733565126561,0.17539,3986.4,3986.3,3.46155517]
[1733565126868,0.17541,3985.9,3985.8,0.01223]
[1733565127060,1.72674173,3985.9,3985.8,0.01223]
[1733565128061,1.72674173,3985.9,3985.8,0.18765]
[1733565128265,3.9349019,3985.9,3985.8,0.18765]
[1733565128461,2.95143465,3986.0,3985.8,0.01223]
[1733565128666,2.95143465,3986.2,3986.1,0.1754]
[1733565128858,2.95143465,3986.3,3986.0,4.11313173]
[1733565129064,2.95143465,3986.4,3986.3,0.17539]
[1733565129260,2.95143465,3986.5,3986.2,0.3852]
[1733565129466,2.95175839,3986.4,3986.2,0.3852]
[1733565129770,2.95175839,3986.5,3986.3,0.17539]
[1733565129959,2.95175839,3986.5,3986.4,0.17539]
[1733565130469,3.9349019,3986.7,3986.6,0.17538]
[1733565131159,4.1102819,3986.7,3986.6,0.17538]
[1733565131561,3.9349019,3986.7,3986.6,0.17538]
[1733565131958,4.84023363,3986.8,3986.2,0.82369]
[1733565132164,4.84023363,3986.8,3986.7,0.17538]
[1733565134667,5.01560363,3986.8,3986.7,0.17538]
[1733565134969,4.84023363,3986.8,3986.7,0.17538]
[1733565136073,1.08070173,3986.8,3986.7,0.17538]
[1733565137275,0.90533173,3986.8,3986.7,0.17538]
[1733565137465,0.90533173,3986.8,3986.7,0.30075164]
[1733565138669,0.90533173,3986.8,3986.7,0.37910812]
[1733565143571,0.90533173,3986.8,3986.7,0.37910407]
[1733565143769,0.90533173,3986.8,3986.7,0.17538]
[1733565143973,4.84193792,3986.8,3986.7,0.17538]
[1733565144272,0.90533173,3986.8,3986.7,0.17538]
[1733565145477,4.84246317,3986.8,3986.7,0.17538]
[1733565146484,0.90533173,3986.8,3986.7,0.17538]
[1733565147880,4.84318459,3986.8,3986.7,0.17538]
[1733565148183,0.90533173,3986.8,3986.7,0.17538]
[1733565148682,1.08070173,3986.8,3986.7,0.17538]
[1733565149270,5.09842006,3986.8,3986.7,0.17538]
[1733565149472,4.92299989,3986.8,3986.4,3.2078]
[1733565149682,3.93828236,3986.6,3986.4,3.2078]
[1733565150077,3.93828236,3986.7,3986.5,0.07835416]
[1733565150279,3.93828236,3986.7,3986.6,0.48775216]
[1733565150280,2.95453966,3986.7,3986.6,0.48775216]
[1733565150578,4.92299989,3987.6,3986.6,4.54435925]
[1733565150776,4.92299989,3987.6,3987.5,0.17534]
[1733565150978,0.3806,3987.9,3987.5,4.13495925]
[1733565151278,0.3806,3987.9,3987.8,0.17533]
[1733565151784,0.3806,3987.9,3987.5,44.7312451]
[1733565151977,1.08067173,3987.7,3987.6,0.07833854]
[1733565153578,0.17535,3987.4,3987.3,4.1065951]
[1733565153777,0.17535,3987.4,3987.3,4.18493548]
[1733565154682,0.17535,3987.4,3987.3,4.31027959]
[1733565154882,0.17535,3987.4,3987.3,4.13492959]
[1733565155080,0.17535,3987.4,3987.3,4.00958543]
[1733565156386,0.17535,3987.4,3987.3,0.07834033]
[1733565157283,0.17535,3987.4,3987.3,0.20368464]
[1733565158889,0.17535,3987.4,3987.2,3.38315]
[1733565158890,0.17535,3987.3,3987.2,3.2078]
[1733565159089,0.99985,3987.3,3987.2,3.2078]
[1733565159291,0.99985,3987.3,3987.1,0.17536]
[1733565159292,0.17535,3987.2,3987.1,0.17536]
[1733565159484,0.3784,3987.2,3986.7,3.2078]
[1733565159785,0.17537,3987.0,3986.9,0.17536]
[1733565159986,0.17537,3986.9,3986.8,0.17537]
[1733565161887,0.90533173,3987.1,3986.6,0.17538]
[1733565161888,4.91829427,3987.0,3986.6,0.17538]
[1733565162082,0.17539,3986.5,3986.4,0.17539]
[1733565164884,0.3951,3986.6,3986.1,0.90533173]
[1733565165087,0.57049,3986.6,3986.5,0.17539]
[1733565165485,0.57049,3986.6,3986.5,10.660888]
[1733565165992,0.57049,3986.6,3986.5,10.86462393]
[1733565166189,0.57049,3986.6,3986.5,10.68923393]
[1733565169683,0.57049,3986.6,3986.5,4.14088975]
[1733565170210,0.57049,3986.6,3986.5,0.07835997]
[1733565171691,1.21649,3986.6,3986.5,0.07835997]
[1733565173192,1.21649,3986.6,3986.5,4.19090379]
[1733565173394,1.21649,3986.6,3986.5,0.25374997]
[1733565173596,1.21649,3986.6,3986.5,0.07835997]
[1733565174194,1.21649,3986.6,3986.5,4.01551379]
[1733565174701,1.21649,3986.6,3986.5,0.07835997]
[1733565177402,1.21649,3986.6,3986.5,0.25374997]
[1733565177902,1.21649,3986.6,3986.5,0.07835997]
[1733565178604,0.17539,3986.4,3986.3,4.11254382]
[1733565178799,0.17539,3986.4,3986.3,4.1909102]
[1733565179502,0.17539,3986.4,3986.3,4.19091047]
[1733565180401,4.11177114,3986.4,3986.3,0.25375665]
[1733565180700,4.11177114,3986.4,3986.3,0.07836665]
[1733565180894,0.90533173,3986.5,3986.2,0.1754]
[1733565181201,4.11184096,3986.3,3986.2,0.1754]
[1733565182193,0.17539,3986.3,3986.2,0.1754]
[1733565182802,4.11184096,3986.3,3986.2,0.1754]
[1733565183299,0.17539,3986.3,3986.2,0.1754]
[1733565187604,0.1754,3986.2,3986.1,0.1754]
[1733565187906,0.5851,3986.2,3986.1,0.1754]
[1733565188610,0.5851,3986.2,3986.1,4.11255382]
[1733565188997,0.5851,3986.2,3986.1,4.31630662]
[1733565189899,0.4097,3986.2,3986.1,4.96576597]
[1733565190105,0.5851,3986.2,3986.1,4.96582148]
[1733565190310,0.4097,3986.2,3986.1,0.3791528]
[1733565190507,0.5851,3986.2,3986.1,4.31563186]
[1733565191105,0.5851,3986.2,3986.1,4.11187906]
[1733565191299,0.5851,3986.2,3986.1,4.31563161]
[1733565192719,1.49043173,3986.2,3986.1,4.31563161]
[1733565193706,1.49043173,3986.2,3986.1,4.14023161]
[1733565193913,1.49043173,3986.2,3986.1,0.20375255]
[1733565194111,0.5851,3986.2,3986.1,0.20375255]
[1733565195311,0.5851,3986.2,3986.1,0.07836636]
[1733565195813,0.5851,3986.2,3986.1,0.07836907]
[1733565196315,0.17542,3985.9,3985.8,0.17541]
[1733565196614,0.17542,3985.9,3985.8,0.25377954]
[1733565196615,1.08075173,3985.9,3985.8,0.25377954]
[1733565198215,1.08075173,3985.9,3985.8,0.25377957]
[1733565198716,1.08075173,3985.9,3985.8,0.07836957]
[1733565199122,1.08075173,3985.9,3985.8,0.25378957]
[1733565199418,0.90533173,3985.9,3985.8,0.25378957]
[1733565199614,1.08074173,3985.9,3985.8,0.25378957]
[1733565201724,1.08074173,3985.9,3985.8,0.25379149]
[1733565203611,1.08074173,3985.9,3985.8,4.84454679]
[1733565204218,1.08074173,3985.9,3985.8,4.96994312]
[1733565204418,0.90533173,3985.9,3985.8,4.96994312]
[1733565204720,1.08074173,3985.9,3985.8,4.96994312]
[1733565205124,1.08074173,3985.9,3985.8,10.88206347]
[1733565205414,1.08074173,3985.9,3985.8,4.96994312]
[1733565207019,1.08074173,3985.9,3985.8,10.88351788]
[1733565207421,1.08074173,3985.9,3985.8,4.96994312]
[1733565207617,1.08074173,3985.9,3985.8,10.88717918]
[1733565208325,1.08074173,3985.9,3985.8,10.88758793]
[1733565208525,1.08074173,3985.9,3985.8,10.88759485]
[1733565208720,1.08074173,3985.9,3985.8,4.97300695]
[1733565208922,1.08074173,3985.9,3985.8,10.8872243]
[1733565209217,1.08074173,3985.9,3985.8,10.88751812]
[1733565209628,1.08074173,3985.9,3985.8,4.97300695]
[1733565210618,1.08074173,3985.9,3985.8,10.88724152]
[1733565211125,0.90533173,3985.9,3985.8,10.68346678]
[1733565211919,0.4056,3986.0,3985.8,10.50804678]
[1733565212227,0.4056,3986.0,3985.9,10.68345678]
[1733565213227,0.4056,3986.0,3985.9,4.76922221]
[1733565213423,1.48634173,3986.0,3985.9,4.76922221]
[1733565213628,1.48634173,3986.0,3985.9,10.68426714]
[1733565213826,1.48634173,3986.0,3985.9,4.76922221]
[1733565214329,1.48634173,3986.0,3985.9,10.68426714]
[1733565214723,0.4056,3986.0,3985.9,10.68426714]
[1733565214925,0.4056,3986.0,3985.9,10.684659]
[1733565215231,0.4056,3986.0,3985.9,4.76922221]
[1733565215429,0.4056,3986.0,3985.9,12.63973558]
[1733565216727,0.4056,3986.0,3985.9,4.76922221]
[1733565217125,0.4056,3986.0,3985.9,12.63973558]
[1733565217334,0.4056,3986.0,3985.9,12.71810466]
[1733565217735,0.4056,3986.0,3985.9,21.91666468]
[1733565218333,0.4056,3986.0,3985.9,21.91664563]
[1733565218634,0.4056,3986.0,3985.9,0.25377908]
[1733565218831,4.34593845,3986.0,3985.9,0.17541]
[1733565219029,3.94033845,3986.0,3985.9,3.46157546]
[1733565219235,3.94033845,3986.1,3986.0,0.17541]
[1733565219536,3.94033845,3986.1,3986.0,41.17915497]
[1733565220635,0.4086,3986.2,3986.1,0.1754]
[1733565220835,5.32689427,3986.2,3986.1,0.37914497]
[1733565221333,5.50229427,3986.2,3986.1,0.37914497]
[1733565221732,0.584,3986.2,3986.1,0.37914497]
[1733565221933,0.584,3986.2,3986.1,0.25376546]
[1733565222132,0.584,3986.2,3986.1,0.37915286]
[1733565223533,0.4086,3986.2,3986.1,0.25376546]
[1733565223739,5.33480271,3986.2,3986.1,0.37915311]
[1733565225435,5.51020271,3986.2,3986.1,0.37915311]
[1733565225734,0.584,3986.2,3986.1,10.89647562]
[1733565226642,0.584,3986.2,3986.1,10.72107562]
[1733565226936,0.584,3986.2,3986.1,4.6784388]
[1733565228043,0.584,3986.2,3986.1,10.77108797]
[1733565229243,0.584,3986.2,3986.1,10.89647564]
[1733565229444,0.584,3986.2,3986.1,10.77108797]
[1733565229643,0.584,3986.2,3986.1,10.89647558]
[1733565230037,0.584,3986.2,3986.1,10.77108797]
[1733565231247,0.584,3986.2,3986.1,10.77198993]
[1733565231745,0.584,3986.2,3986.1,4.85423272]
[1733565232139,0.584,3986.2,3986.1,4.8543725]
[1733565232650,0.584,3986.2,3986.1,10.77212971]
[1733565232847,0.584,3986.2,3986.1,10.59672971]
[1733565233346,0.584,3986.2,3986.1,10.69376425]
[1733565233651,0.584,3986.2,3986.1,0.1754]
[1733565234545,0.4086,3986.2,3986.1,0.1754]
[1733565235049,0.584,3986.2,3986.1,0.1754]
[1733565236750,6.49558554,3986.2,3986.1,0.1754]
[1733565237143,0.584,3986.2,3986.1,0.1754]
[1733565240349,0.4086,3986.2,3986.1,0.1754]
[1733565240650,3.36635661,3986.2,3986.1,10.63600069]
[1733565240951,3.36635661,3986.2,3986.1,10.63599308]
[1733565241147,3.54175661,3986.2,3986.1,10.63599308]